bitfinex/quotes_ETHUSD_20240819
["timestamp","ask_amount","ask_price","bid_price","bid_amount"]
[1724091264019,11.18403,2601.5,2600.9,0.08810839]
[1724091264217,3.8443,2601.3,2600.7,3.84501]
[1724091264439,7.34,2601.5,2600.8,0.08796221]
[1724091264440,3.84455,2601.1,2600.8,0.08796221]
[1724091264819,3.84455,2601.1,2600.6,3.84519]
[1724091265150,3.84455,2601.1,2600.7,0.08796221]
[1724091265536,2.4667,2601.2,2600.7,0.08796221]
[1724091265859,3.84476,2601.0,2600.5,3.84532]
[1724091266103,3.84476,2601.0,2600.8,0.08800034]
[1724091266258,3.84476,2601.0,2600.4,3.84545]
[1724091266259,3.84476,2601.0,2600.6,3.84525]
[1724091266459,3.84476,2601.0,2600.9,0.08800034]
[1724091266662,3.84476,2601.0,2600.6,3.84525]
[1724091266860,3.84476,2601.0,2600.9,0.0880067]
[1724091267060,3.84476,2601.0,2600.6,3.84525]
[1724091267257,3.84476,2601.0,2600.9,0.08804483]
[1724091267481,2.4667,2601.2,2600.8,3.84484]
[1724091267687,3.84417,2601.4,2600.9,0.08804483]
[1724091267688,3.84409,2601.4,2600.9,0.08804483]
[1724091268001,3.84409,2601.4,2600.9,3.84475]
[1724091268141,7.68826,2601.4,2600.9,3.84475]
[1724091268341,3.84409,2601.4,2601.0,0.08804483]
[1724091268570,7.68827,2601.4,2601.0,0.08804483]
[1724091268785,3.84424,2601.3,2601.0,0.08804483]
[1724091269182,3.84424,2601.3,2600.8,3.84495]
[1724091269393,3.84437,2601.2,2601.1,0.08796221]
[1724091269547,3.84474,2601.0,2600.5,3.84529]
[1724091269745,3.84474,2601.0,2600.5,7.69073]
[1724091269979,3.84488,2600.9,2600.6,0.08796857]
[1724091270349,3.84488,2600.9,2600.5,3.84539]
[1724091270562,3.84488,2600.9,2600.7,0.08805755]
[1724091270762,3.84488,2600.9,2600.5,3.84539]
[1724091270979,3.84488,2600.9,2600.8,0.08805755]
[1724091271179,7.68947,2601.0,2600.5,3.84541]
[1724091271378,3.84467,2601.0,2600.8,0.08805755]
[1724091271581,7.68945,2601.0,2600.5,4.637703]
[1724091271786,3.84467,2601.0,2600.9,0.08805755]
[1724091272252,6.11893,2601.2,2600.7,3.84511]
[1724091272455,6.11893,2601.2,2600.9,0.08805755]
[1724091272791,6.11893,2601.2,2600.8,0.08795582]
[1724091272999,6.11893,2601.2,2600.7,3.84511]
[1724091273301,3.84459,2601.1,2600.8,0.08793675]
[1724091273449,6.11893,2601.2,2600.8,0.08793675]
[1724091273643,9.96342,2601.2,2600.7,3.84504]
[1724091273988,9.96342,2601.2,2600.9,0.08793675]
[1724091273989,3.84456,2601.1,2600.9,0.08793675]
[1724091274308,3.84456,2601.1,2601.0,0.08793675]
[1724091274785,3.84456,2601.1,2600.7,3.84504]
[1724091275097,2.2745,2601.2,2600.8,3.84484]
[1724091275249,2.2745,2601.2,2600.8,3.93275132]
[1724091275596,6.11889,2601.2,2600.8,3.93275132]
[1724091275750,6.11889,2601.2,2600.8,0.08791132]
[1724091275952,6.11892,2601.2,2600.8,0.08791132]
[1724091276149,6.11892,2601.2,2600.7,3.84504]
[1724091276595,6.11892,2601.2,2600.8,0.08784141]
[1724091276805,6.11892,2601.2,2600.8,3.93278141]
[1724091277104,6.11892,2601.2,2600.9,0.08784141]
[1724091277105,3.84472,2601.0,2600.9,0.08784141]
[1724091277245,7.68944,2601.0,2600.9,0.08784141]
[1724091277449,3.84487,2600.9,2600.5,3.84539]
[1724091279049,3.84469,2601.0,2600.5,7.69067]
[1724091279357,3.84469,2601.0,2600.6,3.84524]
[1724091279557,3.84469,2601.0,2600.6,4.72891368]
[1724091279992,6.11888,2601.2,2600.7,3.84498]
[1724091280152,6.11888,2601.2,2600.8,3.84488]
[1724091280353,6.11888,2601.2,2600.7,3.84504]
[1724091280354,3.8446,2601.1,2600.7,3.84504]
[1724091280668,2.2745,2601.2,2600.7,3.84504]
[1724091280669,6.1189,2601.2,2600.7,3.84504]
[1724091281034,6.1189,2601.2,2600.8,0.08790497]
[1724091281194,3.84453,2601.1,2600.8,0.08790497]
[1724091281353,3.84453,2601.1,2600.7,3.84504]
[1724091281554,3.84453,2601.1,2600.9,0.08790497]
[1724091281750,3.84453,2601.1,2600.7,4.69365532]
[1724091281957,3.84453,2601.1,2601.0,0.08790497]
[1724091282159,2.3023,2600.9,2600.4,3.84553]
[1724091282357,6.14721,2600.9,2600.5,3.8454]
[1724091282552,6.14721,2600.9,2600.5,4.637781]
[1724091283192,3.84498,2600.8,2600.3,4.07841]
[1724091283394,3.84536,2600.6,2600.1,3.84589]
[1724091283606,3.84536,2600.6,2599.7,3.84657]
[1724091283607,3.84596,2600.2,2599.7,3.84657]
[1724091283760,3.84596,2600.2,2599.7,4.854901]
[1724091283761,6.23963,2600.2,2599.7,4.854901]
[1724091284283,6.23963,2600.2,2599.8,3.84643]
[1724091284666,2.3937,2600.2,2599.9,3.84627]
[1724091284877,2.2657,2600.4,2600.0,3.84604]
[1724091285083,2.2657,2600.4,2600.0,4.615271]
[1724091286175,6.11127,2600.4,2600.0,4.615271]
[1724091286401,6.11127,2600.4,2600.0,0.769231]
[1724091286611,6.11127,2600.4,2599.9,7.69249]
[1724091286968,2.2657,2600.4,2600.1,3.84594]
[1724091287704,7.34,2600.5,2600.2,3.84579]
[1724091288011,7.34,2600.5,2600.2,4.614942]
[1724091288215,2.4557,2600.7,2600.3,3.8457]
[1724091288544,6.30084,2600.7,2600.4,0.08823555]
[1724091289014,6.30084,2600.7,2600.3,3.8457]
[1724091289224,6.30084,2600.7,2600.4,3.84555]
[1724091289225,2.4557,2600.7,2600.4,3.84555]
[1724091289370,2.4557,2600.7,2600.3,4.614836]
[1724091289574,6.30084,2600.7,2600.3,3.84569]
[1724091290014,6.30084,2600.7,2600.4,0.08823555]
[1724091290395,7.90854574,2600.7,2600.4,0.08823555]
[1724091290698,3.84528,2600.6,2600.2,3.84576]
[1724091291317,3.84528,2600.6,2600.3,0.08814653]
[1724091291672,3.84528,2600.6,2600.1,3.84599]
[1724091291890,3.84541,2600.5,2600.4,0.08814653]
[1724091292201,3.84541,2600.5,2600.0,3.84615]
[1724091292432,3.84541,2600.5,2600.1,3.93414653]
[1724091292944,3.84541,2600.5,2600.1,0.08814653]
[1724091292945,3.84544,2600.5,2600.1,0.08814653]
[1724091293650,5.45298574,2600.6,2600.3,3.84561]
[1724091293651,1.60770574,2600.6,2600.3,3.84561]
[1724091293961,4.06340574,2600.7,2600.4,4.70290676]
[1724091294249,4.06340574,2600.7,2600.4,4.614703]
[1724091294608,4.06340574,2600.7,2600.4,8.460173]
[1724091294949,1.60770574,2600.7,2600.5,0.0884644]
[1724091295153,1.60770574,2600.7,2600.6,3.84526]
[1724091295352,1.60770574,2600.8,2600.6,3.84526]
[1724091295553,1.60770574,2600.9,2600.7,3.84511]
[1724091295749,1.60770574,2600.8,2600.7,3.84511]
[1724091296250,1.60770574,2600.9,2600.7,3.84511]
[1724091296461,1.60770574,2600.9,2600.8,0.08845804]
[1724091296609,1.60770574,2600.9,2600.6,3.84526]
[1724091296610,2.009504,2600.9,2600.6,3.84526]
[1724091296948,2.009504,2600.9,2600.7,0.08845804]
[1724091296949,1.60767667,2600.8,2600.7,0.08845804]
[1724091298311,1.60767667,2600.9,2600.7,0.08845804]
[1724091298614,1.60767667,2600.9,2600.7,3.93354804]
[1724091299065,1.60767667,2600.8,2600.7,3.93354804]
[1724091299724,1.60767667,2600.8,2600.7,0.08845804]
[1724091299921,1.60767667,2600.8,2600.7,3.93356804]
[1724091300409,1.60767667,2600.9,2600.8,3.84497]
[1724091300605,1.60767667,2600.9,2600.7,0.08845804]
[1724091300606,4.36655401,2600.9,2600.7,0.08845804]
[1724091300810,2.00975401,2600.8,2600.3,3.84561]
[1724091301009,1.60781447,2600.7,2600.3,3.84561]
[1724091301251,1.60781447,2600.7,2600.0,0.384618]
[1724091301452,5.45344447,2600.4,2599.9,3.84629]
[1724091301752,1.60781447,2600.3,2599.9,3.84629]
[1724091301911,5.45359447,2600.3,2599.8,3.84644]
[1724091302117,4.01331447,2600.2,2599.8,3.84644]
[1724091302413,7.85919447,2600.2,2599.8,3.84644]
[1724091302608,1.60781447,2600.1,2599.1,6.531]
[1724091302809,5.45403447,2600.0,2599.3,3.84715]
[1724091303011,1.60781447,2599.9,2599.5,3.84682]
[1724091304341,2.3672,2599.8,2599.3,3.84715]
[1724091305478,2.3672,2599.8,2599.4,3.84699]
[1724091305784,2.3672,2599.8,2599.5,3.84689]
[1724091306691,2.3672,2599.8,2598.9,3.84773]
[1724091306902,3.94201447,2600.1,2599.7,3.84653]
[1724091307039,3.94201447,2600.1,2599.6,7.69331]
[1724091307242,2.3342,2600.1,2599.6,3.84665]
[1724091307794,2.3342,2600.1,2599.8,3.84643]
[1724091307993,2.3342,2600.1,2599.9,3.84627]
[1724091308151,2.3342,2600.1,2599.6,4.231305]
[1724091308340,2.3342,2600.1,2600.0,0.08821735]
[1724091308542,2.3342,2600.1,2599.8,3.84642]
[1724091308760,2.3342,2600.1,2600.0,0.08810926]
[1724091308960,2.3342,2600.1,2599.8,3.84642]
[1724091309263,7.34,2600.3,2599.8,0.769306]
[1724091309463,7.34,2600.3,2600.0,3.84604]
[1724091309665,7.34,2600.3,2599.9,3.84629]
[1724091309995,7.34,2600.3,2600.0,0.0880266]
[1724091310199,7.34,2600.3,2600.0,3.9341666]
[1724091310401,7.34,2600.3,2600.1,3.84598]
[1724091310777,7.34,2600.3,2600.2,3.93387025]
[1724091311087,1.60781447,2600.6,2600.2,3.93387025]
[1724091311088,4.01441447,2600.6,2600.2,3.93387025]
[1724091311326,4.01441447,2600.6,2600.1,3.84598]
[1724091311327,2.4066,2600.6,2600.3,3.8457]
[1724091311641,4.01441447,2600.6,2600.2,3.84585]
[1724091312019,4.01441447,2600.6,2600.3,0.08796303]
[1724091312349,4.01441447,2600.6,2600.3,3.84569]
[1724091312560,2.4066,2600.6,2600.3,3.84569]
[1724091313048,2.4066,2600.6,2600.4,3.84556]
[1724091313216,9.34819959,2600.9,2600.5,3.84532]
[1724091313217,1.60781447,2600.8,2600.5,3.84532]
[1724091313420,11.63109959,2600.9,2600.5,3.84532]
[1724091313421,11.23071447,2600.9,2600.5,3.84532]
[1724091313623,11.23071447,2600.9,2600.6,0.08784859]
[1724091313805,1.60781447,2600.8,2600.4,3.84548]
[1724091314010,11.63109959,2600.9,2600.5,3.84541]
[1724091314011,11.23071447,2600.9,2600.5,3.84541]
[1724091314964,11.23071447,2600.9,2600.4,0.384556]
[1724091314965,1.60781447,2600.7,2600.3,3.8456]
[1724091315116,1.60781447,2600.7,2600.6,0.08776597]
[1724091315515,1.60781447,2600.8,2600.4,3.84548]
[1724091315736,1.60781447,2600.8,2600.4,4.230058]
[1724091315953,1.60781447,2600.8,2600.5,0.08776597]
[1724091316140,1.60781447,2600.8,2600.4,3.84551]
[1724091316325,1.60781447,2600.7,2600.6,0.08776597]
[1724091316527,1.60781447,2600.7,2600.4,3.84551]
[1724091316761,1.60781447,2600.7,2600.6,0.08776597]
[1724091316969,1.60781447,2600.7,2600.4,3.84553]
[1724091317263,1.60781447,2600.8,2600.4,3.84549]
[1724091317566,1.60781447,2600.8,2600.5,3.93310597]
[1724091318260,3.89071447,2600.9,2600.5,3.93310597]
[1724091318417,1.60781447,2600.8,2600.5,3.93310597]
[1724091318621,3.89071447,2600.9,2600.5,3.93310597]
[1724091318849,3.89071447,2600.9,2600.5,0.86562557]
[1724091319019,3.89071447,2600.9,2600.7,3.84503]
[1724091319238,2.2829,2600.9,2600.7,3.84503]
[1724091319587,1.60781447,2601.0,2600.8,7.77770597]
[1724091319716,1.60781447,2601.2,2601.1,7.68904]
[1724091319919,1.60781447,2601.4,2601.2,3.84437]
[1724091320121,4.06251447,2601.5,2601.3,3.84423]
[1724091320658,4.06251447,2601.5,2601.4,0.08776597]
[1724091320922,1.60781447,2601.6,2601.4,0.08776597]
[1724091321235,1.60781447,2601.6,2600.8,3.0]
[1724091321236,2.3401,2601.4,2601.0,3.84452]
[1724091321442,2.3401,2601.4,2601.3,3.84423]
[1724091322269,3.94791447,2601.6,2601.3,3.84423]
[1724091322833,3.94791447,2601.6,2601.4,3.84405]
[1724091323245,1.60781447,2601.5,2601.3,3.84422]
[1724091324135,3.94791447,2601.6,2601.3,3.84422]
[1724091324334,1.60781447,2601.5,2601.2,3.84437]
[1724091324565,1.60781447,2601.5,2601.4,0.08776597]
[1724091324765,3.94791447,2601.6,2601.3,3.84422]
[1724091324966,3.94791447,2601.6,2601.4,3.93182597]
[1724091325634,2.3401,2601.6,2601.4,3.93182597]
[1724091325835,3.94791447,2601.6,2601.4,3.93182597]
[1724091326502,2.3401,2601.6,2601.4,3.93182597]
[1724091326698,1.60781447,2601.6,2601.4,3.93182597]
[1724091326921,1.60781447,2601.7,2601.4,3.93177597]
[1724091327122,1.60781447,2601.7,2601.4,3.84399]
[1724091327280,1.60781447,2601.7,2601.6,3.84378]
[1724091327487,4.34750646,2601.8,2601.6,3.84369]
[1724091327488,1.60781447,2601.8,2601.6,3.84369]
[1724091327739,1.60781447,2601.8,2601.6,3.9309286]
[1724091328539,3.94791447,2602.0,2601.6,3.9309286]
[1724091328689,2.3401,2601.8,2601.6,0.0872386]
[1724091328889,7.79140447,2601.8,2601.2,3.84437]
[1724091329134,7.79140447,2601.8,2601.1,3.84446]
[1724091329135,7.79140447,2601.8,2601.3,3.9314586]
[1724091329482,9.25359837,2601.8,2601.3,3.9314586]
[1724091329685,7.6457839,2601.8,2601.3,7.7755586]
[1724091329930,3.8022939,2601.8,2601.4,3.844]
[1724091330153,7.6457839,2601.8,2601.4,3.844]
[1724091330366,7.6457839,2601.8,2601.5,0.0872386]
[1724091330740,2.3401,2601.8,2601.5,3.9311486]
[1724091331262,2.3401,2601.8,2601.6,3.84369]
[1724091331875,2.3401,2601.8,2601.7,3.9308786]
[1724091332164,3.91561447,2602.1,2601.7,3.9308086]
[1724091332370,6.15085,2602.1,2601.7,0.0872386]
[1724091332573,5.27653002,2602.1,2601.7,3.84353]
[1724091332725,3.66871555,2602.1,2601.8,0.08670493]
[1724091333452,7.51176555,2602.1,2601.8,0.08670493]
[1724091334065,11.35489555,2602.1,2601.8,0.08670493]
[1724091334228,7.51176555,2602.1,2601.8,0.08670493]
[1724091334431,7.51176555,2602.1,2601.7,3.84363]
[1724091335069,7.51176555,2602.1,2601.8,0.08670493]
[1724091335948,2.3078,2602.1,2601.8,0.08670493]
[1724091336277,2.3078,2602.1,2601.7,3.84356]
[1724091336278,2.3078,2602.1,2601.9,3.84333]
[1724091336426,2.3078,2602.1,2601.8,3.84347]
[1724091336984,2.3078,2602.1,2601.9,0.08670493]
[1724091337328,6.15089,2602.1,2601.9,0.08670493]
[1724091337528,6.15089,2602.1,2601.7,3.84362]
[1724091337724,6.15089,2602.1,2602.0,0.08670493]
[1724091338077,7.150276,2602.1,2601.7,3.84362]
[1724091338243,6.15089,2602.1,2602.0,0.08670493]
[1724091338419,6.15089,2602.1,2601.7,3.84362]
[1724091338625,6.15089,2602.1,2602.0,0.08670493]
[1724091338972,2.3078,2602.1,2601.7,7.68717]
[1724091339179,2.3078,2602.1,2602.0,0.08670493]
[1724091339385,2.3078,2602.1,2601.7,3.84355]
[1724091339685,2.3078,2602.1,2602.0,0.08670493]
[1724091339830,2.3078,2602.1,2601.7,3.84355]
[1724091340026,2.3078,2602.1,2602.0,0.08670493]
[1724091340266,2.3078,2602.1,2601.7,3.84355]
[1724091340573,6.15084,2602.1,2601.5,3.84381]
[1724091340787,2.3601,2602.0,2601.8,0.08652076]
[1724091340943,2.3601,2601.9,2601.1,3.84442]
[1724091341279,2.3601,2601.4,2601.0,3.84465]
[1724091341840,2.3601,2601.4,2600.3,3.84563]
[1724091341841,3.84462,2601.1,2600.3,3.84563]
[1724091342026,2.3601,2601.4,2600.3,3.84563]
[1724091342027,2.3601,2600.8,2600.3,3.84563]
[1724091342230,6.20508,2600.8,2600.3,3.84563]
[1724091342439,2.3601,2600.8,2600.4,3.84554]
[1724091342637,2.3601,2600.8,2600.5,3.84539]
[1724091343860,2.3601,2600.8,2600.4,3.84556]
[1724091344231,11.337,2601.2,2601.0,3.84454]
[1724091344232,7.34,2601.2,2601.0,3.84454]
[1724091344563,7.34,2601.2,2600.6,2.3287]
[1724091344564,2.3601,2601.5,2601.2,3.84437]
[1724091345144,13.68378008,2602.0,2601.4,3.84399]
[1724091345145,2.3601,2601.8,2601.4,3.84399]
[1724091346271,2.4748,2602.1,2601.6,3.84376]
[1724091346644,2.4748,2602.1,2601.7,0.08650171]
[1724091347248,2.4748,2602.1,2601.7,3.93006171]
[1724091347963,2.4748,2602.1,2601.8,3.84348]
[1724091348179,2.4748,2602.1,2601.9,3.84331]
[1724091348363,2.4748,2602.3,2601.9,0.08650171]
[1724091348942,2.4748,2602.3,2602.0,3.84319]
[1724091349327,7.86217447,2602.6,2602.1,3.84303]
[1724091349471,7.86217447,2602.6,2602.1,0.08650171]
[1724091349472,6.25445,2602.6,2602.1,0.08650171]
[1724091349800,7.86175447,2602.9,2602.4,3.84255]
[1724091350009,7.86175447,2602.9,2602.4,3.8426]
[1724091350010,2.412,2602.9,2602.4,3.8426]
[1724091350153,2.412,2602.9,2602.4,7.68511]
[1724091350154,6.25388,2602.9,2602.4,7.68511]
[1724091350351,2.412,2602.9,2602.5,3.84243]
[1724091350598,2.412,2602.9,2602.6,3.8423]
[1724091350779,2.412,2602.9,2602.6,0.08628581]
[1724091350780,3.037357,2602.9,2602.6,0.08628581]
[1724091350982,6.879307,2602.9,2602.3,7.68531]
[1724091351297,6.879307,2602.9,2602.7,0.08628581]
[1724091351298,2.412,2602.9,2602.7,0.08628581]
[1724091351478,2.412,2602.9,2602.5,3.84238]
[1724091351799,5.44934447,2603.2,2602.0,2.2891]
[1724091351800,2.412,2603.2,2602.9,3.84185]
[1724091351949,2.412,2603.2,2602.8,3.84189]
[1724091351950,2.412,2603.2,2602.8,7.6838]
[1724091352152,2.412,2603.2,2602.8,7.68383]
[1724091352353,2.412,2603.5,2603.0,3.84161]
[1724091352552,0.74520934,2603.4,2603.0,3.84161]
[1724091352768,0.74520934,2603.4,2603.1,0.08521953]
[1724091353170,2.412,2603.5,2603.2,3.8414]
[1724091353413,2.412,2603.5,2603.1,3.84153]
[1724091353596,7.75595447,2603.8,2603.3,3.92618756]
[1724091353799,2.3075,2603.8,2603.3,3.84119]
[1724091353976,2.3075,2603.8,2603.4,0.08499756]
[1724091354380,3.84069,2603.7,2603.4,0.08499756]
[1724091354686,3.84069,2603.7,2603.1,7.68296]
[1724091354889,3.84069,2603.7,2603.5,0.08499756]
[1724091355086,0.998873,2603.6,2603.1,7.68295]
[1724091355303,0.998873,2603.6,2603.2,3.84139]
[1724091355603,0.998873,2603.6,2603.1,3.84147]
[1724091355604,0.998873,2603.6,2603.3,3.84125]
[1724091355809,6.14804,2603.8,2603.3,3.84125]
[1724091356011,6.14804,2603.8,2603.3,3.8412]
[1724091356327,6.14804,2603.8,2603.3,7.68237]
[1724091356625,2.3075,2603.8,2603.4,3.91793575]
[1724091356789,7.146891,2603.8,2603.3,3.84117]
[1724091356992,3.84071,2603.7,2603.1,3.84144]
[1724091357193,10.987571,2603.8,2603.1,3.84144]
[1724091357503,4.9394671,2603.7,2603.1,3.84144]
[1724091357701,4.9394671,2603.7,2603.1,7.68294]
[1724091357908,4.9394671,2603.7,2603.2,3.84141]
[1724091358105,1.0987571,2603.7,2603.3,3.84126]
[1724091358448,6.14807,2603.8,2603.3,3.84126]
[1724091358784,2.3075,2603.8,2603.4,3.84102]
[1724091358983,2.3075,2603.8,2603.3,3.84119]
[1724091359211,2.3075,2603.8,2603.3,3.84118]
[1724091359526,3.306331,2603.8,2603.3,3.84118]
[1724091360019,3.306331,2603.8,2603.4,3.84112]
[1724091360437,3.306331,2603.8,2603.1,3.84146]
[1724091360636,2.3075,2603.8,2603.3,3.84127]
[1724091360793,2.3075,2603.8,2603.5,3.84097]
[1724091361407,2.3371,2604.1,2603.5,3.84097]
[1724091361605,2.3371,2604.1,2603.6,3.91755751]
[1724091361834,2.3371,2604.1,2603.7,3.92447826]
[1724091362143,2.3371,2604.1,2603.7,3.92446826]
[1724091362744,2.3371,2604.1,2603.7,3.92445826]
[1724091362913,2.3371,2604.1,2603.9,3.84037]
[1724091363322,2.3371,2604.1,2603.9,3.84039]
[1724091363500,2.3371,2604.1,2604.0,0.08386826]
[1724091364613,3.8398,2604.3,2603.8,3.84053]
[1724091364795,3.8398,2604.3,2603.9,0.08386826]
[1724091365251,3.84003,2604.2,2603.9,0.08386826]
[1724091365446,9.97278,2604.0,2603.9,0.08386826]
[1724091365610,3.8406,2603.8,2603.3,3.84118]
[1724091365809,7.68123,2603.8,2603.4,0.08386826]
[1724091366010,3.8406,2603.8,2603.3,3.84118]
[1724091366211,6.13262,2604.0,2603.4,4.30900626]
[1724091366212,9.973,2604.0,2603.4,4.30900626]
[1724091366628,3.83981,2604.3,2603.8,3.84053]
[1724091366826,3.83981,2604.3,2603.8,3.84046]
[1724091366827,2.4841,2604.2,2603.8,3.84046]
[1724091366998,2.4841,2604.2,2603.9,0.08386826]
[1724091367203,3.997,2604.5,2603.4,4.225118]
[1724091367204,6.32434,2604.0,2603.4,4.225118]
[1724091367431,6.32434,2604.0,2603.5,3.92473826]
[1724091367631,6.32434,2604.0,2603.6,4.65581563]
[1724091368459,6.32434,2604.0,2603.7,0.08386826]
[1724091369369,2.4841,2604.0,2603.7,0.08386826]
[1724091370288,10.08438,2603.8,2603.7,0.08386826]
[1724091370579,7.252278,2603.8,2603.0,3.84167]
[1724091370779,7.252278,2603.8,2603.1,3.92536826]
[1724091370780,3.84084,2603.6,2603.1,3.92536826]
[1724091370927,6.24384,2603.8,2603.1,0.08386826]
[1724091370928,2.4033,2603.8,2603.1,0.08386826]
[1724091371128,2.4033,2603.8,2603.3,3.84114]
[1724091371376,2.4033,2603.8,2603.4,3.84112]
[1724091371591,6.24392,2603.8,2603.4,0.08386826]
[1724091371733,3.84071,2603.7,2603.4,0.08386826]
[1724091371933,3.84092,2603.6,2603.1,3.84152]
[1724091372129,3.84092,2603.6,2603.2,0.85218126]
[1724091372379,6.24396,2603.8,2603.3,3.84125]
[1724091372883,6.24396,2603.8,2603.4,3.92498826]
[1724091373675,6.24393,2603.8,2603.4,0.08386826]
[1724091373835,3.84069,2603.7,2603.4,0.08386826]
[1724091374035,3.84069,2603.7,2603.2,3.84128]
[1724091374335,3.84069,2603.7,2603.3,0.08391263]
[1724091374538,3.84069,2603.7,2603.2,4.609568]
[1724091374733,3.84069,2603.7,2603.3,0.0838302]
[1724091374934,3.84069,2603.7,2603.2,8.450868]
[1724091375129,6.24393,2603.8,2603.3,4.770127]
[1724091375348,6.24393,2603.8,2603.4,3.84111]
[1724091375774,2.4033,2603.8,2603.5,3.9247702]
[1724091375992,2.4033,2603.8,2603.5,0.0838302]
[1724091377050,2.4033,2603.8,2603.5,3.9248002]
[1724091377889,2.4033,2603.8,2603.5,0.0838302]
[1724091378747,3.84092,2603.6,2603.1,3.84148]
[1724091378944,3.84068,2603.7,2603.2,0.08377948]
[1724091379250,3.84099,2603.5,2603.2,0.08377948]
[1724091379547,3.84083,2603.6,2603.2,0.08377948]
[1724091379984,3.841,2603.5,2603.2,0.08377948]
[1724091380207,3.84083,2603.6,2603.2,0.08377948]
[1724091380413,3.84083,2603.6,2603.2,3.92519948]
[1724091380704,3.84083,2603.6,2603.2,0.08377948]
[1724091380904,2.4033,2603.8,2603.2,4.83279463]
[1724091381105,2.4033,2603.8,2603.4,3.84099]
[1724091381400,2.4033,2603.8,2603.5,0.08388726]
[1724091381698,2.4033,2603.8,2603.5,3.92484726]
[1724091382915,9.666,2604.1,2603.6,3.84082]
[1724091383058,3.84024,2604.0,2603.6,3.84082]
[1724091383261,3.84024,2604.0,2603.7,0.08383022]
[1724091383598,3.84024,2604.0,2603.6,4.61737673]
[1724091383599,3.84024,2604.0,2603.6,0.77655673]
[1724091383960,3.84024,2604.0,2603.7,0.08383022]
[1724091384680,6.1661,2604.1,2603.7,0.08383022]
[1724091384881,6.1661,2604.1,2603.7,4.77869092]
[1724091385285,2.326,2604.1,2603.7,4.77869092]
[1724091385657,9.7586,2604.4,2603.7,0.93803092]
[1724091385889,2.4186,2604.4,2604.1,7.68003]
[1724091386220,2.4186,2604.4,2604.2,0.08363368]
[1724091386569,3.83943,2604.6,2604.2,0.08363368]
[1724091386723,7.67891,2604.6,2604.2,0.08363368]
[1724091386935,3.83958,2604.5,2604.2,0.08363368]
[1724091387074,3.8398,2604.3,2604.2,0.08363368]
[1724091387595,2.4782,2604.4,2603.6,6.84072]
[1724091387917,3.84002,2604.2,2603.7,3.92431368]
[1724091388128,2.4782,2604.1,2603.7,3.92431368]
[1724091388307,2.4782,2604.1,2603.7,5.00081705]
[1724091388515,2.4782,2604.1,2603.8,3.84053]
[1724091388716,2.4782,2604.1,2603.7,5.00080705]
[1724091388933,2.4782,2604.1,2603.7,3.84067]
[1724091389077,2.4782,2604.1,2603.8,0.08363368]
[1724091390689,6.31832,2604.1,2603.8,0.08363368]
[1724091390888,5.59574837,2604.5,2603.8,0.08363368]
[1724091390889,6.17549,2603.9,2603.8,0.08363368]
[1724091391105,2.3351,2603.6,2603.2,3.84141]
[1724091392732,2.3351,2603.6,2603.3,3.84125]
[1724091393033,2.3351,2603.6,2603.3,4.609467]
[1724091393534,2.3351,2603.6,2603.3,8.450667]
[1724091393705,2.3351,2603.6,2603.3,3.8412]
[1724091395304,2.3351,2603.6,2603.1,3.84145]
[1724091395484,3.93384837,2603.6,2603.2,3.84141]
[1724091396429,1.59874837,2603.5,2603.2,3.84141]
[1724091396629,1.59874837,2603.4,2602.8,3.84193]
[1724091396816,2.3513,2603.2,2602.8,3.84193]
[1724091397017,6.1928,2603.2,2602.7,7.68414]
[1724091397400,7.79154837,2603.2,2602.7,7.68414]
[1724091397617,7.79154837,2603.2,2602.7,3.84206]
[1724091397832,7.79154837,2603.2,2602.8,0.08091414]
[1724091397833,2.3513,2603.1,2602.8,0.08091414]
[1724091398031,3.84217,2602.7,2602.2,3.84283]
[1724091398235,3.95004837,2602.8,2602.1,3.84304]
[1724091398442,3.95004837,2602.8,2601.9,3.8433]
[1724091398443,2.3513,2602.4,2601.9,3.8433]
[1724091398744,2.3513,2602.4,2601.6,7.68738]
[1724091398745,3.84298,2602.2,2601.6,7.68738]
[1724091398949,3.84298,2602.2,2601.7,0.768738]
[1724091399102,3.84298,2602.2,2601.6,3.84368]
[1724091399604,2.3513,2602.1,2601.7,0.08157369]
[1724091399803,2.3513,2602.1,2601.4,3.84399]
[1724091400005,3.8432,2602.0,2601.5,3.92551907]
[1724091400202,2.3513,2602.1,2601.6,3.84377]
[1724091400651,2.3513,2602.1,2601.7,0.08192906]
[1724091401158,6.19435,2602.1,2601.5,7.68767]
[1724091401317,6.19435,2602.1,2601.8,0.08192906]
[1724091401524,6.19435,2602.1,2601.6,3.84375]
[1724091402016,6.19435,2602.1,2601.7,0.08192906]
[1724091402223,6.19435,2602.1,2601.5,3.84383]
[1724091402434,6.19435,2602.1,2601.8,0.08192906]
[1724091402643,10.0375,2602.1,2601.5,3.84383]
[1724091402820,10.0375,2602.1,2601.9,0.08192906]
[1724091403176,11.44095,2602.1,2601.5,3.84383]
[1724091403303,6.19435,2602.1,2602.0,0.08212584]
[1724091403622,6.19435,2602.1,2601.5,3.84383]
[1724091403821,6.19435,2602.1,2601.6,0.08213219]
[1724091404807,6.19435,2602.1,2601.6,3.92591219]
[1724091406499,6.19435,2602.1,2601.6,0.08213219]
[1724091406500,3.8432,2602.0,2601.6,0.08213219]
[1724091407201,2.2692,2601.9,2601.6,0.08213219]
[1724091407843,3.997,2602.0,2601.0,3.0]
[1724091407844,3.84398,2601.5,2601.0,3.0]
[1724091408039,3.84398,2601.5,2601.1,0.08339496]
[1724091408980,2.2692,2601.4,2601.1,0.08339496]
[1724091409144,3.8443,2601.3,2601.1,0.08339496]
[1724091409350,7.68863,2601.3,2600.8,3.84496]
[1724091409886,7.68863,2601.3,2600.9,0.08353467]
[1724091409887,3.84441,2601.2,2600.9,0.08353467]
[1724091410240,3.84441,2601.2,2600.8,3.84495]
[1724091410488,3.84441,2601.2,2600.9,0.08353467]
[1724091411039,3.84423,2601.3,2600.9,0.08353467]